[Event "44th Chess Olympiad Women 2022"]
[Site "Chennai"]
[Date "2022.08.07"]
[Round "9.17"]
[White "Nguyen, Thien Ngan"]
[Black "Barbier, Astrid"]
[Result "1-0"]
[ECO "B33"]
[WhiteElo "1912"]
[BlackElo "1879"]
[Annotator "TA"]
[PlyCount "89"]
[EventDate "2022.07.29"]
[EventType "team-tourn"]
[EventCountry "IND"]
[SourceTitle "playchess.com"]
[Source "ChessBase"]
[SourceQuality "1"]
[WhiteTeam "Vietnam"]
[BlackTeam "Belgium"]
[WhiteTeamCountry "VIE"]
[BlackTeamCountry "BEL"]
[TimeControl "40/5400+30:1800+30"]

{[%evp 23,89,30,40,0,15,-3,6,3,11,-3,9,0,26,0,14,17,43,43,53,60,60,56,70,57,102,68,125,112,128,114,127,48,166,181,195,212,246,249,244,245,688,686,672,662,653,645,1959,1638,4698,761,1200,731,1119,647,638,630,582,568,977,921,5812,5593,29979,29978,29979,29980,29982,29983]} 1. e4 {[%emt 0:00:03]} c5 {[%emt 0:00:05]} 2. Nf3 {[%emt 0:00:10]} Nc6 {[%emt 0:00:07]} 3. d4 {[%emt 0:00:12]} cxd4 {[%emt 0:00:07]} 4. Nxd4 {[%emt 0:00:08]} Nf6 {[%emt 0:00:16]} 5. Nc3 {[%emt 0:02:21]} e5 {[%emt 0:00:13]} 6. Ndb5 {[%emt 0:00:16]} d6 {[%emt 0:00:09]} 7. Bg5 {[%emt 0:00:14]} a6 {[%emt 0:00:15]} 8. Na3 {[%emt 0:00:34]} b5 {[%emt 0:00:09]} 9. Nd5 {[%emt 0:06:09]} Be7 {[%emt 0:00:11]} 10. Bxf6 {[%emt 0:00:18]} Bxf6 {[%emt 0:00:08]} 11. c3 {[%emt 0:00:21]} O-O {[%emt 0:03:55]} 12. Nc2 {[%emt 0:00:27]} Rb8 {[%emt 0:00:46] is now more promising than 12...Bg5.} 13. Ncb4 {[%emt 0:04:15] B33: Sicilian: Pelikan and Sveshnikov Variations.} (13. h4 $5) 13... Nxb4 {[%emt 0:03:05]} 14. Nxb4 {[%emt 0:00:20]} Bb7 {[%emt 0:02:44] Prevents Nc6.} 15. Nd5 {[%emt 0:04:01] The position is equal.} Bg5 {[%emt 0:00:38]} 16. Be2 {[%emt 0:10:10]} Bc6 {[%emt 0:04:40]} 17. Qd3 {[%emt 0:01:46]} Kh8 {[%emt 0:06:48]} 18. O-O {[%emt 0:12:58]} a5 {[%emt 0:04:26] [#]} 19. Rfd1 $146 {[%emt 0:04:33]} ({Predecessor:} 19. b4 a4 20. Rfd1 g6 21. Bf3 Qd7 22. a3 f5 23. Ra2 Bd8 24. Rc2 Rc8 25. Ne3 {0-1 (43) Reichard,S (1967)-Kawuma,S (2166) Gibraltar 2008}) 19... Bh6 {[%emt 0:07:39]} 20. b4 {[%emt 0:03:30]} a4 {[%emt 0:12:21]} 21. a3 {[%emt 0:01:08]} Qd7 {[%emt 0:03:22]} 22. h3 {[%emt 0:09:26]} Qb7 {[%emt 0:14:57][%cal Of7f5]} 23. Ra2 {[%emt 0:06:05]} Rfc8 {[%emt 0:04:27]} 24. Rc2 {[%emt 0:02:22]} Bg5 {[%emt 0:05:18]} (24... Bd7 $14) 25. Bg4 $16 {[%emt 0:02:09]} Rf8 {[%emt 0:05:00]} 26. c4 {[%emt 0:05:26] White is more active.} g6 {[%emt 0:09:15][%cal Of7f5]} 27. Be2 {[%emt 0:10:31]} (27. cxb5 $16 Bxb5 28. Qg3) 27... f5 {[%emt 0:02:43]} (27... bxc4 $14 28. Qg3 (28. Rxc4 Bb5 $15) (28. Qxc4 Rbc8 $11) 28... Bd8) 28. cxb5 $18 {[%emt 0:00:55]} fxe4 {[%emt 0:01:57]} 29. Qxe4 {[%emt 0:01:09]} Bxb5 {[%emt 0:01:32]} 30. Bxb5 {[%emt 0:04:45]} Qxb5 {[%emt 0:00:29]} 31. Nc7 {[%emt 0:00:33][%csl LRb5,LRd6]} Rf4 $2 {[%emt 0:05:07]} (31... Qd7 32. Qxe5+ dxe5 33. Rxd7 Rfd8 34. Rxd8+ Bxd8) 32. Qxf4 {[%emt 0:00:35]} exf4 {[%emt 0:00:39]} 33. Nxb5 {[%emt 0:00:07]} Rxb5 {[%emt 0:00:05]} 34. Rxd6 {[%emt 0:00:38][%mdl 4096] [#] Endgame Hoping for Rc8+. KRR-KRB} Kg7 {[%emt 0:01:28]} 35. Rd7+ {[%emt 0:00:33]} Kh6 {[%emt 0:00:51]} 36. Rc5 {[%emt 0:00:08]} (36. Rcc7 $142 Bd8 37. Rxd8) 36... Rb6 {[%emt 0:00:20]} 37. Ra5 {[%emt 0:01:28] Threatens to win with Raa7.} Rc6 {[%emt 0:00:44]} 38. Rd1 {[%emt 0:00:14]} Rc2 {[%emt 0:00:39]} 39. Rxa4 {[%emt 0:00:11]} Bh4 {[%emt 0:00:22]} 40. Rf1 {[%emt 0:01:00]} g5 {[%emt 0:00:49]} 41. b5 {[%emt 0:30:31][%cal Bb4b5,Bb5b6,Bb6b7][%mdl 32]} Rb2 {[%emt 0:03:40]} 42. Rb4 {[%emt 0:00:00]} Rd2 {[%emt 0:01:15]} 43. b6 {[%emt 0:00:00] White mates.} Rd8 {[%emt 0:00:06]} 44. b7 {[%emt 0:00:00]} Rb8 {[%emt 0:00:03]} 45. Rc1 {[%emt 0:00:00] Weighted Error Value: White=0.33/Black=0.46} 1-0

[Event "44th Chess Olympiad Women 2022"]
[Site "Chennai"]
[Date "2022.08.07"]
[Round "9.19"]
[White "Hernandez Diaz, Paula Sofia"]
[Black "Bravo Mallco, Kate Azumi"]
[Result "0-1"]
[ECO "A36"]
[WhiteElo "1751"]
[BlackElo "1958"]
[Annotator "TA"]
[PlyCount "120"]
[EventDate "2022.07.29"]
[EventType "team-tourn"]
[EventCountry "IND"]
[SourceTitle "playchess.com"]
[Source "ChessBase"]
[SourceQuality "1"]
[WhiteTeam "Mexico"]
[BlackTeam "Peru"]
[WhiteTeamCountry "MEX"]
[BlackTeamCountry "PER"]
[TimeControl "40/5400+30:1800+30"]

{[%evp 18,120,-3,-1,14,0,20,14,18,0,0,0,0,0,6,0,0,-35,-35,-33,0,0,10,-27,-19,-59,0,-79,-3,-86,-86,-86,-86,-85,-86,-85,-86,-93,-111,-100,-77,-208,-208,-211,-211,-277,-219,-211,-219,-219,-211,-395,-390,-372,-324,-321,-309,-393,-392,-423,-423,-395,-256,-257,-25,-33,-36,-37,0,0,0,0,0,0,0,0,0,0,0,0,0,0,0,-29967,-29951,-29956,-29960,-29963,-29961,-29962,-29959,-29966,-29963,-29979,-29980,-29986,-29987,-29987,-29988,-29990,-29990,-29991,-29991,-29992,-29993]} 1. c4 {[%emt 0:00:13]} c5 {[%emt 0:01:03]} 2. Nc3 {[%emt 0:00:42]} Nc6 {[%emt 0:00:06]} 3. g3 {[%emt 0:00:06]} g6 {[%emt 0:00:05]} 4. Bg2 {[%emt 0:00:06]} Bg7 {[%emt 0:00:02]} 5. d3 {[%emt 0:03:20]} e6 {[%emt 0:00:50]} 6. e4 {[%emt 0:02:40]} d6 {[%emt 0:03:42]} 7. Nge2 {[%emt 0:01:33]} Nge7 {[%emt 0:00:39]} 8. O-O {[%emt 0:01:08]} O-O {[%emt 0:06:20]} 9. Be3 {[%emt 0:02:11] 9.Rb1 might become the main line.} Nd4 {[%emt 0:00:10]} 10. Rb1 {[%emt 0:00:54]} Rb8 {[%emt 0:06:33] A36: Symmetrical English vs ...g6: 4 Bg2 Bg7.} 11. Qd2 {[%emt 0:03:03]} a6 {[%emt 0:07:49]} 12. b4 {[%emt 0:05:43] [#]} b6 $146 {[%emt 0:04:21] The position is equal.} ({Predecessor:} 12... Bd7 13. f4 Nxe2+ 14. Nxe2 b6 15. d4 Qc7 16. bxc5 bxc5 17. dxc5 dxc5 18. Rxb8 Rxb8 {1-0 (38) Miezis,N (2518)-Nekrasov,M (2327) Baden 2016}) 13. Bh6 {[%emt 0:08:40]} Bxh6 {[%emt 0:26:20]} 14. Qxh6 {[%emt 0:00:10]} Bb7 {[%emt 0:00:04]} 15. Nxd4 {[%emt 0:11:18]} cxd4 {[%emt 0:04:24]} 16. Ne2 {[%emt 0:00:17]} e5 {[%emt 0:00:21]} 17. a4 {[%emt 0:12:43]} f5 {[%emt 0:03:17]} 18. f3 {[%emt 0:00:50]} Bc8 {[%emt 0:09:47]} 19. b5 {[%emt 0:05:33]} a5 {[%emt 0:00:09]} 20. Kh1 {[%emt 0:02:09]} Kh8 {[%emt 0:00:12]} 21. Qd2 {[%emt 0:00:24]} Ng8 {[%emt 0:00:25]} (21... fxe4 $15 22. fxe4 Ng8) 22. Rbe1 {[%emt 0:02:57]} (22. exf5 $1 $11 {remains equal.} Bxf5 23. Rbe1) 22... Nf6 {[%emt 0:00:27]} (22... fxe4 $1 $17 {Strongly threatening ...e3.} 23. fxe4 Nf6) 23. Ng1 {[%emt 0:01:03] [#]} (23. exf5 $1 $11 gxf5 24. h3) 23... fxe4 $1 $17 {[%emt 0:10:43]} 24. fxe4 {[%emt 0:00:46]} Ng4 {[%emt 0:01:45][%cal Bf6g4,Bg4e3,Be3d1,Bd1c3][%mdl 32]} 25. Rxf8+ {[%emt 0:00:56]} Qxf8 {[%emt 0:00:01]} 26. Rf1 {[%emt 0:01:54] Against Nf2+} Qe7 {[%emt 0:00:02]} 27. Nf3 {[%emt 0:01:20]} Ne3 {[%emt 0:07:03]} 28. Rf2 {[%emt 0:00:17]} Bg4 {[%emt 0:01:19]} 29. Ne1 {[%emt 0:01:05]} (29. h3 $17 Be6 30. Nh2) 29... Nd1 $19 {[%emt 0:01:09]} 30. Rf1 {[%emt 0:01:16]} Nc3 {[%emt 0:00:02]} 31. h3 {[%emt 0:05:08]} Bd1 {[%emt 0:02:22]} 32. Nc2 {[%emt 0:01:43]} Bxc2 {[%emt 0:00:02]} 33. Qxc2 {[%emt 0:00:07]} Rf8 {[%emt 0:00:54] ...Rxf1+ is the strong threat.} 34. Re1 {[%emt 0:09:47]} (34. Bf3) 34... Qg5 {[%emt 0:00:38]} 35. Kh2 {[%emt 0:00:29]} h5 {[%emt 0:03:32]} 36. h4 {[%emt 0:02:47]} Qe7 {[%emt 0:00:04]} 37. Bh3 {[%emt 0:02:24]} Kg7 {[%emt 0:01:02]} 38. Rf1 {[%emt 0:10:18]} Rxf1 {[%emt 0:00:49]} 39. Bxf1 {[%emt 0:00:04][%cal Bh3f1,Bf1e2,Be2d1,Bd1c2][%mdl 4128] Endgame KQB-KQN} Qc7 {[%emt 0:00:20]} 40. Be2 {[%emt 0:01:07]} Qc5 $2 {[%emt 0:00:26]} (40... Qf7 $19 {( -> ...Qf2+)} 41. Kg2 Qf6) 41. Bd1 $11 {[%emt 0:30:49]} Qa3 {[%emt 0:31:08] aiming for ...Qa1.} 42. Qd2 {[%emt 0:00:00][%cal Od2g5]} Qc5 {[%emt 0:00:00]} 43. Qg5 {[%emt 0:00:00]} Qc7 {[%emt 0:00:00] Active counter play!} 44. Bc2 {[%emt 0:00:00]} d5 {[%emt 0:00:00]} 45. exd5 {[%emt 0:00:00]} Nxd5 {[%emt 0:00:00]} 46. cxd5 {[%emt 0:00:00]} Qxc2+ {[%emt 0:00:00] KQ-KQ} 47. Kh3 {[%emt 0:00:00]} Qc7 {[%emt 0:00:00]} 48. Kg2 {[%emt 0:00:00]} Qd6 {[%emt 0:00:00]} 49. Kh2 {[%emt 0:00:00]} Qf6 {[%emt 0:02:19] Threatens to win with ...Qxg5.} 50. Qxf6+ {[%emt 0:04:51][%mdl 8192]} (50. Qc1 $11) 50... Kxf6 {[%emt 0:00:02] KP-KP. Black mates.} 51. Kg2 {[%emt 0:00:10]} Ke7 {[%emt 0:00:08]} 52. Kf3 {[%emt 0:00:49] [#]} Kd7 $1 {[%emt 0:00:03]} (52... Kd6 53. Ke4 Kc5 54. Kxe5 Kb4 55. d6 Kb3 56. d7 g5 57. hxg5) 53. g4 {[%emt 0:00:36]} Ke7 {[%emt 0:01:53]} 54. gxh5 {[%emt 0:00:26]} gxh5 {[%emt 0:00:02]} 55. Ke4 {[%emt 0:00:10]} Kd6 {[%emt 0:00:04]} 56. Kf5 {[%emt 0:00:08]} Kxd5 {[%emt 0:00:03]} 57. Kg5 {[%emt 0:00:05]} e4 {[%emt 0:00:09]} 58. dxe4+ {[%emt 0:00:05]} Kxe4 {[%emt 0:00:02]} 59. Kxh5 {[%emt 0:00:16]} d3 {[%emt 0:00:08][%cal Bd4d3,Bd3d2][%mdl 32]} 60. Kh6 {[%emt 0:00:15]} d2 {[%emt 0:00:07] Weighted Error Value: White=0.31/Black=0.22 (precise)} 0-1

[Event "44th Chess Olympiad Women 2022"]
[Site "Chennai"]
[Date "2022.08.07"]
[Round "9.33"]
[White "Ndirangu, Joyce Nyaruai"]
[Black "Elansary, Eman"]
[Result "1-0"]
[ECO "D02"]
[WhiteElo "1679"]
[BlackElo "1936"]
[Annotator "TA"]
[PlyCount "157"]
[EventDate "2022.07.29"]
[EventType "team-tourn"]
[EventCountry "IND"]
[SourceTitle "playchess.com"]
[Source "ChessBase"]
[SourceQuality "1"]
[WhiteTeam "Kenya"]
[BlackTeam "Egypt"]
[WhiteTeamCountry "KEN"]
[BlackTeamCountry "EGY"]
[TimeControl "40/5400+30:1800+30"]

{[%evp 13,157,-18,-16,-23,-17,-16,-9,-28,-16,-45,-32,-34,-11,0,-15,-51,-42,-62,-56,-59,-53,-75,-72,-137,-69,-79,-4,-11,9,3,29,21,25,21,59,60,50,20,19,0,45,0,27,-18,-6,-9,0,0,47,57,58,56,79,21,69,16,86,85,94,98,88,41,90,47,49,0,72,8,12,10,15,4,8,8,0,0,52,52,52,59,38,41,68,26,128,161,271,179,179,179,177,83,83,83,83,83,918,715,1710,1490,3178,1850,12797,12793,29978,5377,29977,29977,29977,29978,29984,29985,29985,29979,29981,29978,29979,29977,29978,0,29979,0,29981,29981,29984,29985,29985,29984,29984,29985,29983,6421,29986,29987,29987,29987,29988,29989,29989,29988,29990,29989,29989,29990,29990,29991]} 1. d4 {[%emt 0:01:17]} d5 {[%emt 0:00:08]} 2. Nf3 {[%emt 0:01:19]} Nf6 {[%emt 0:00:10]} 3. Bf4 {[%emt 0:00:11]} c5 {[%emt 0:00:16]} 4. e3 {[%emt 0:00:17]} Nc6 {[%emt 0:00:18]} 5. c3 {[%emt 0:00:40]} Qb6 {[%emt 0:00:49]} 6. Qc1 {[%emt 0:05:35]} Bf5 {[%emt 0:00:42]} 7. Nbd2 {[%emt 0:01:54]} e6 {[%emt 0:00:15]} 8. Be2 {[%emt 0:02:47] D02: 1 d4 d5 2 Nf3 sidelines, including 2...Nf6 3 g3 and 2...Nf6 3 Bf4.} Be7 {[%emt 0:00:50]} 9. O-O {[%emt 0:01:59]} O-O {[%emt 0:05:19]} 10. Ne5 {[%emt 0:17:13] The position is equal.} Nxe5 {[%emt 0:03:58]} 11. dxe5 {[%emt 0:01:13]} Nd7 {[%emt 0:00:25] [#]} 12. c4 $146 {[%emt 0:02:07]} ({Predecessor:} 12. Nf3 Rac8 13. Qd2 Rfd8 14. h3 Qc6 15. Bd3 Be4 16. Bxe4 dxe4 17. Ng5 Nxe5 18. Qe2 Ng6 19. Qh5 h6 20. Nxf7 Kxf7 21. f3 Rd5 22. Be5 Rxe5 23. fxe4+ Bf6 {0-1 (23) Mlynek,M (1486)-Tanenbaum,Z (2137) Chess.com INT 2021}) 12... f6 {[%emt 0:05:36]} 13. cxd5 {[%emt 0:00:43]} exd5 {[%emt 0:00:32]} 14. Bf3 {[%emt 0:03:19]} Be6 {[%emt 0:02:50]} ({Don't take} 14... fxe5 15. Bxd5+ Kh8 16. Nc4 $14) ({Don't play} 14... Nxe5 15. Bxe5 fxe5 16. Bxd5+ Kh8 17. Nc4 $14) 15. exf6 {[%emt 0:03:37]} Bxf6 {[%emt 0:04:33]} 16. Rb1 {[%emt 0:00:31]} Ne5 {[%emt 0:01:45]} 17. Bxe5 {[%emt 0:09:37]} Bxe5 {[%emt 0:00:28]} 18. e4 {[%emt 0:00:33]} (18. Qd1 $142) 18... dxe4 {[%emt 0:21:13]} ({Black should play} 18... d4 $17 {White must now prevent ...Bf4.} 19. b3 Bf4) 19. Bxe4 $15 {[%emt 0:01:01]} Bf4 {[%emt 0:00:49] A strong pair of Bishops.} ({Black should try} 19... Bxa2 $17 20. Ra1 Bf7) 20. Qc2 {[%emt 0:02:43]} Rad8 {[%emt 0:05:22]} 21. Nf3 {[%emt 0:12:00]} (21. Bxh7+ {is interesting.} Kh8 22. Nf3 Bxa2 23. Ra1) 21... h6 {[%emt 0:04:23]} 22. b3 {[%emt 0:05:58]} Bf7 {[%emt 0:06:12]} 23. g3 {[%emt 0:05:12]} Bc7 {[%emt 0:01:08]} 24. Rbd1 {[%emt 0:04:57]} Rfe8 {[%emt 0:05:11]} 25. Bh7+ {[%emt 0:02:35]} Kh8 {[%emt 0:01:47] And now ...g6 would win.} 26. Rxd8 {[%emt 0:01:43]} (26. Nh4 {feels hotter.} Rxd1 27. Rxd1 Bh5 28. f3) 26... Rxd8 {[%emt 0:01:01]} 27. Bf5 {[%emt 0:01:49]} Qd6 {[%emt 0:07:41]} (27... c4 $5) 28. Bh3 {[%emt 0:01:17]} Bg6 {[%emt 0:00:36]} 29. Bf5 {[%emt 0:02:38]} Bxf5 {[%emt 0:01:04]} 30. Qxf5 {[%emt 0:00:19]} Rf8 {[%emt 0:00:12]} (30... Qd5 $11 31. Qxd5 Rxd5) 31. Qe4 $14 {[%emt 0:00:41]} b5 {[%emt 0:03:04]} 32. Nh4 {[%emt 0:01:02]} Kg8 {[%emt 0:00:34]} 33. Re1 {[%emt 0:01:09]} (33. Ng6 $16 Rd8 34. Re1) 33... Ba5 {[%emt 0:06:16]} (33... Qf6 $11) 34. Re2 {[%emt 0:01:53]} (34. Re3 $1 $14) 34... Bc3 {[%emt 0:08:13]} (34... Qd4 $1 $11) 35. Ng6 $16 {[%emt 0:01:33]} Rd8 {[%emt 0:01:53]} 36. Ne7+ {[%emt 0:00:53]} Kh8 {[%emt 0:01:14]} 37. Kg2 {[%emt 0:00:17] White is more active.} (37. Nc6 $1 $16 {[%cal Rc6d8]} Rf8 38. Nxa7) 37... a6 {[%emt 0:00:49]} (37... Qd3 $14 {might be stronger.}) 38. Ng6+ {[%emt 0:02:55]} Kg8 {[%emt 0:00:08]} 39. Ne7+ {[%emt 0:00:30]} (39. Nf4 {keeps more tension.} Bd2 40. Ne6 Re8 41. f4) 39... Kh8 {[%emt 0:00:17]} 40. Nf5 {[%emt 0:01:02]} (40. Qf5 $16) 40... Qd5 $11 {[%emt 0:00:38]} 41. Qxd5 {[%emt 0:31:07]} Rxd5 {[%emt 0:03:44][%mdl 4096] Endgame KRB-KRN} 42. Ne7 {[%emt 0:00:00]} Rd6 {[%emt 0:03:16]} 43. f4 {[%emt 0:00:00]} Kh7 {[%emt 0:01:13]} 44. f5 {[%emt 0:00:00]} Rd2 {[%emt 0:02:55]} ({Better is} 44... Bf6 $11) 45. Rxd2 $14 {[%emt 0:00:00]} Bxd2 {[%emt 0:00:01] KB-KN} 46. Kf3 {[%emt 0:00:00]} Bg5 {[%emt 0:01:20]} 47. Nd5 {[%emt 0:00:00]} Bd8 {[%emt 0:00:22] Against Nc7} 48. Ke4 {[%emt 0:00:00] Nf4 is the strong threat.} h5 {[%emt 0:01:16] [#]} (48... g6 $1 $11) 49. Nf4 $1 $16 {[%emt 0:00:00]} h4 {[%emt 0:05:42]} (49... Kh6 {keeps fighting.} 50. Ne6 Be7) 50. Ne6 {[%emt 0:00:00][%csl LRc5,LRd8]} hxg3 {[%emt 0:01:09]} 51. hxg3 {[%emt 0:00:00][%cal Bh2g3,Bg3g4,Bg4g5,Bg5g6][%mdl 32]} Be7 {[%emt 0:00:20] [#]} 52. Kd5 {[%emt 0:00:00] Inhibits c4.} (52. g4 $1 $18 {is more deadly.}) 52... c4 {[%emt 0:01:34]} 53. bxc4 {[%emt 0:00:00]} bxc4 {[%emt 0:00:02]} 54. Kxc4 {[%emt 0:00:00]} a5 $2 {[%emt 0:01:06][%mdl 8192]} (54... g6 $16) 55. a4 $18 {[%emt 0:00:00]} Bb4 {[%emt 0:01:22]} 56. g4 {[%emt 0:00:00]} Kh6 {[%emt 0:01:07]} 57. Kd5 {[%emt 0:02:09] Hoping for Kc6.} Bd2 {[%emt 0:01:31]} 58. Kd6 {[%emt 0:00:50]} Kh7 {[%emt 0:01:39]} 59. Ke7 {[%emt 0:00:33]} (59. g5 $142 Kg8 60. Ke7 Bc1 61. Ke8 Be3 62. f6 gxf6 63. gxf6 Kh8 64. f7) 59... Kg8 {[%emt 0:00:25]} 60. g5 {[%emt 0:00:14]} Bb4+ {[%emt 0:00:21]} 61. Ke8 {[%emt 0:00:40]} Bc3 {[%emt 0:00:28]} 62. g6 {[%emt 0:00:36]} Bb4 {[%emt 0:01:48]} 63. Kd7 {[%emt 0:01:22]} Bc3 {[%emt 0:00:57]} 64. Kc6 {[%emt 0:00:23]} Bd2 {[%emt 0:00:56]} 65. Kb5 {[%emt 0:00:49]} Bc3 {[%emt 0:00:24]} 66. Kc6 $2 {[%emt 0:01:11]} (66. Kb6 {mates} Bd2 67. Kb5 Bc3 68. Nd8 Kf8 69. Nc6 Ke8 70. Nxa5 Be5 71. Nc6) 66... Bb4 $2 {[%emt 0:00:53][%mdl 8192]} (66... Bd2 $11 67. Kb5 Be1) 67. Kd7 {[%emt 0:00:27]} Bc3 $1 {[%emt 0:00:25]} 68. Kd8 {[%emt 0:00:20]} Bf6+ {[%emt 0:01:24]} 69. Ke8 {[%emt 0:00:14]} Bc3 {[%emt 0:00:09]} 70. Nc5 {[%emt 0:00:58]} Bd4 {[%emt 0:00:55]} 71. Nb7 {[%emt 0:00:46]} Bc3 {[%emt 0:00:23]} 72. Nd8 {[%emt 0:00:21]} (72. Nd6 $142 Bd2 73. Nc8 Bc3 74. Ne7+ Kh8 75. Kf7 Be1 76. f6 Bc3 77. fxg7+ Bxg7 78. Nc6) 72... Bb4 {[%emt 0:02:02]} 73. Nc6 {[%emt 0:00:09] White mates.} Bc3 {[%emt 0:00:19]} 74. Ne7+ {[%emt 0:00:07]} Kh8 {[%emt 0:00:12]} 75. Kf7 {[%emt 0:00:13]} Bb2 {[%emt 0:01:52]} 76. Nd5 {[%emt 0:00:54]} Ba3 {[%emt 0:02:15]} 77. f6 {[%emt 0:01:25][%csl Gf7][%cal Rf6g7]} Bb2 {[%emt 0:02:19]} 78. fxg7+ {[%emt 0:00:32]} Bxg7 {[%emt 0:00:11]} 79. Nb6 {[%emt 0:00:19] Weighted Error Value: White=0.22 (precise) /Black=0.53} 1-0

[Event "44th Chess Olympiad Women 2022"]
[Site "Chennai"]
[Date "2022.08.07"]
[Round "9.35"]
[White "Chaves, Jussara"]
[Black "Badenhorst, Chloe"]
[Result "0-1"]
[ECO "A02"]
[WhiteElo "1933"]
[BlackElo "1703"]
[Annotator "TA"]
[PlyCount "96"]
[EventDate "2022.07.29"]
[EventType "team-tourn"]
[EventCountry "IND"]
[SourceTitle "playchess.com"]
[Source "ChessBase"]
[SourceQuality "1"]
[WhiteTeam "Portugal"]
[BlackTeam "South Africa"]
[WhiteTeamCountry "POR"]
[BlackTeamCountry "RSA"]
[TimeControl "40/5400+30:1800+30"]

{[%evp 10,96,-42,-72,-29,-83,-43,-78,-76,-120,-134,-127,-108,-111,-104,-107,-66,-69,-60,-82,-43,-125,-120,-130,-125,-114,-100,-114,-111,-113,-92,-74,-84,-155,-109,-88,-71,-66,-66,-65,0,0,0,0,0,0,27,21,97,18,22,0,0,-601,-570,-698,-693,-656,-632,-651,-631,-669,-660,-662,-638,-668,-642,-620,-606,-689,-673,-741,-725,-951,-914,-1633,-1553,-4952,-3696,-29970,-29972,-29973,-29974,-29976,-29977,-29981,-29982,-29984,-29983]} 1. f4 {[%emt 0:00:12]} Nf6 {[%emt 0:00:08]} 2. b3 {[%emt 0:00:23]} g6 {[%emt 0:00:08]} 3. Bb2 {[%emt 0:00:07]} Bg7 {[%emt 0:00:13]} 4. e4 {[%emt 0:00:34]} d6 {[%emt 0:18:41]} 5. Nf3 {[%emt 0:01:06]} O-O {[%emt 0:00:21]} 6. d3 {[%emt 0:00:42]} c5 {[%emt 0:01:02] A02: Bird's Opening.} (6... Nc6 $5 {[%cal Re7e5]}) 7. Be2 {[%emt 0:02:37]} (7. Nc3 $11) 7... Nc6 {[%emt 0:00:22][%cal Oe7e5]} 8. O-O {[%emt 0:02:59] [#]} e5 $1 {[%emt 0:03:52] Black is better.} 9. Nfd2 {[%emt 0:13:41] [#]} exf4 $146 {[%emt 0:08:38]} ({Predecessor:} 9... a6 10. fxe5 Nxe5 11. Nf3 Nfg4 12. Nxe5 Nxe5 13. Nc3 b5 14. Rb1 Be6 15. Nd5 Bxd5 16. exd5 {0-1 (42) Lieder,G (1810)-Fink,C (2128) Bad Zwesten 2005}) 10. Rxf4 {[%emt 0:01:12]} Nh5 {[%emt 0:06:39]} 11. Bxg7 {[%emt 0:00:34]} Nxf4 {[%emt 0:00:35]} 12. Bxf8 {[%emt 0:00:13] aiming for Bh6.} Kxf8 {[%emt 0:00:58]} 13. Bf1 {[%emt 0:06:24]} Qg5 {[%emt 0:06:07] White must now prevent ...Nh3+.} 14. Kh1 $1 {[%emt 0:13:05]} Bg4 {[%emt 0:07:07] 0x0.001ebb36a60cdp-1022s more active pieces. The white rooks are badly placed.} 15. Nf3 {[%emt 0:01:46]} (15. Qe1 $15) 15... Qf6 $36 {[%emt 0:04:17][%mdl 2048] Black is on the roll.} 16. Nbd2 {[%emt 0:02:45]} Nd4 {[%emt 0:02:28][%cal Od4c2]} 17. Rb1 {[%emt 0:04:42]} Nxf3 {[%emt 0:05:51]} 18. Nxf3 {[%emt 0:01:30]} Re8 {[%emt 0:14:06]} 19. b4 {[%emt 0:06:14]} b6 {[%emt 0:02:14]} 20. bxc5 {[%emt 0:02:17]} dxc5 {[%emt 0:00:21]} 21. Rb3 {[%emt 0:17:03]} (21. Be2 $142) 21... Nh3 {[%emt 0:05:04]} 22. Qe2 {[%emt 0:01:08]} Ng5 {[%emt 0:03:06]} (22... Qf4 {is more complex.} 23. a4 f5 24. a5 c4) 23. Nxg5 {[%emt 0:03:23]} Qxg5 {[%emt 0:00:34]} 24. Qe1 {[%emt 0:00:26]} f5 {[%emt 0:02:04]} (24... Bd7 $15) 25. h3 $11 {[%emt 0:01:28]} Bh5 {[%emt 0:00:56]} 26. Rb1 {[%emt 0:05:08]} Kg8 {[%emt 0:02:23]} 27. a4 {[%emt 0:01:58]} fxe4 {[%emt 0:03:01]} 28. dxe4 {[%emt 0:00:15]} (28. g4 {keeps more tension.} Bxg4 29. hxg4 Qxg4 30. Qe3) 28... Qe5 {[%emt 0:00:41]} (28... Qf4 $1 $11 {keeps the balance.}) 29. Bc4+ {[%emt 0:01:11]} (29. g4 $16) 29... Kg7 {[%emt 0:00:03]} 30. Bd5 {[%emt 0:00:54] And now g4 would win.} g5 {[%emt 0:00:47]} 31. Qe3 $2 {[%emt 0:00:26][%mdl 8192] White is on the road to losing.} (31. a5 $11) 31... Qxd5 $1 $19 {[%emt 0:00:50]} 32. exd5 {[%emt 0:01:25]} Rxe3 {[%emt 0:00:01][%mdl 4096] Endgame KRB-KR} 33. a5 {[%emt 0:00:25]} Bf7 {[%emt 0:01:41]} 34. d6 {[%emt 0:00:19]} Re2 {[%emt 0:00:49]} 35. Rd1 {[%emt 0:02:06] Strongly threatening d7.} Re8 {[%emt 0:01:01]} 36. axb6 {[%emt 0:00:17]} axb6 {[%emt 0:00:02]} 37. Rb1 {[%emt 0:01:27]} Rd8 {[%emt 0:00:20]} 38. Rxb6 {[%emt 0:00:08]} Kf6 {[%emt 0:00:26] ...Ke5 is the strong threat.} 39. Kh2 {[%emt 0:02:08]} Ke6 {[%emt 0:00:29]} 40. Rc6 {[%emt 0:00:26]} Kd5 {[%emt 0:00:55]} 41. Rc7 {[%emt 0:30:24]} Bg6 {[%emt 0:03:55]} 42. c3 {[%emt 0:00:00]} Rxd6 {[%emt 0:00:31] Hoping for ...Kc4.} 43. Re7 {[%emt 0:00:00]} Kc4 {[%emt 0:01:13]} 44. Re3 {[%emt 0:00:00]} Bd3 {[%emt 0:00:39] Black mates.} 45. Kg3 {[%emt 0:00:00]} Kxc3 {[%emt 0:01:21]} 46. Kg4 {[%emt 0:00:00]} Rd5 {[%emt 0:00:44]} 47. h4 {[%emt 0:00:00]} gxh4 {[%emt 0:00:35]} 48. Kxh4 {[%emt 0:00:00]} c4 {[%emt 0:00:22] Weighted Error Value: White=0.47/Black=0.15 (very precise)} 0-1